[Event "47th GRE-chT 2019"]
[Site "Patra"]
[Date "2019.07.04"]
[Round "4.19"]
[White "Chatzieleftheriou, Andreas"]
[Black "Loukisas, Dimitrios"]
[Result "1-0"]
[ECO "C01"]
[WhiteElo "2208"]
[BlackElo "1898"]
[Annotator "NA"]
[PlyCount "141"]
[EventDate "2019.07.02"]
[EventCountry "GRE"]
[SourceTitle "playchess.com"]
[Source "ChessBase"]
[SourceQuality "1"]
[TimeControl "5400+30"]

1. e4 {[%emt 0:00:00]} e6 {[%emt 0:00:00]} 2. d4 {[%emt 0:00:00]} d5 {[%emt 0:00:00]} 3. Bd3 {[%emt 0:00:10]} dxe4 {[%emt 0:01:04]} 4. Bxe4 {[%emt 0:00:10]} Nf6 {[%emt 0:00:14]} 5. Bf3 {[%emt 0:00:15]} Be7 {[%emt 0:00:33]} 6. Ne2 {[%emt 0:00:36]} Nbd7 {[%emt 0:01:12]} 7. O-O {[%emt 0:01:15]} O-O {[%emt 0:01:09]} 8. c4 {[%emt 0:03:59]} e5 {[%emt 0:03:10]} 9. Nbc3 {[%emt 0:00:33]} exd4 {[%emt 0:03:02]} 10. Nxd4 {[%emt 0:00:51]} Ne5 {[%emt 0:02:43]} 11. Be2 {[%emt 0:00:49]} c6 {[%emt 0:00:44]} 12. Bf4 {[%emt 0:06:20]} Ng6 {[%emt 0:03:40]} 13. Bg3 {[%emt 0:00:50]} h5 {[%emt 0:05:44]} 14. h3 {[%emt 0:05:47]} h4 {[%emt 0:00:27]} 15. Bh2 {[%emt 0:00:22]} Bd6 {[%emt 0:00:54]} 16. Bxd6 {[%emt 0:04:20]} Qxd6 {[%emt 0:03:45]} 17. Nf3 {[%emt 0:03:39]} Qc5 {[%emt 0:01:01]} 18. Qd4 {[%emt 0:04:15]} Qh5 {[%emt 0:01:17]} 19. Rad1 {[%emt 0:07:47]} Re8 {[%emt 0:08:07]} 20. Rfe1 {[%emt 0:10:03]} Bd7 {[%emt 0:16:48]} 21. Qd2 {[%emt 0:06:55]} Bxh3 {[%emt 0:18:22]} 22. gxh3 {[%emt 0:01:26]} Rxe2 {[%emt 0:00:47]} 23. Rxe2 {[%emt 0:03:24]} Qxf3 {[%emt 0:00:23]} 24. Qe3 {[%emt 0:05:28]} Qf5 {[%emt 0:00:46]} 25. Red2 {[%emt 0:02:21]} Nf4 {[%emt 0:01:58]} 26. Kh2 {[%emt 0:04:44]} Ne6 {[%emt 0:05:07]} 27. Rd3 {[%emt 0:09:07]} Re8 {[%emt 0:01:59]} 28. Qf3 {[%emt 0:01:16]} Qc5 {[%emt 0:00:19]} 29. Re3 {[%emt 0:02:51]} Qxc4 {[%emt 0:00:58]} 30. Ne4 {[%emt 0:01:58]} Nxe4 {[%emt 0:01:16]} 31. Rxe4 {[%emt 0:00:53]} Qc2 {[%emt 0:03:35]} 32. Rd7 {[%emt 0:00:59]} Rf8 {[%emt 0:00:24]} 33. Re2 {[%emt 0:02:10]} Qc5 {[%emt 0:01:14]} 34. Qg4 {[%emt 0:01:18]} b5 {[%emt 0:02:50]} 35. Qxh4 {[%emt 0:02:08]} a5 {[%emt 0:00:19]} 36. Qg4 {[%emt 0:00:39]} g6 {[%emt 0:02:36]} 37. h4 {[%emt 0:01:47]} Ng7 {[%emt 0:00:17]} 38. Rde7 {[%emt 0:03:27]} Qd6+ {[%emt 0:01:10]} 39. Qg3 {[%emt 0:00:48]} Qd5 {[%emt 0:00:46]} 40. R7e5 {[%emt 0:00:00]} Qd4 {[%emt 0:00:00]} 41. h5 {[%emt 0:00:00]} Kh7 {[%emt 0:00:00]} 42. R5e4 {[%emt 0:00:00]} Qc5 {[%emt 0:00:00]} 43. hxg6+ {[%emt 0:00:00]} fxg6 {[%emt 0:01:31]} 44. Re7 {[%emt 0:00:00]} Rf5 {[%emt 0:00:00]} 45. R7e5 {[%emt 0:00:00]} Rh5+ {[%emt 0:00:00]} 46. Rxh5+ {[%emt 0:00:00]} Nxh5 {[%emt 0:00:00]} 47. Qe5 {[%emt 0:00:00]} Qc4 {[%emt 0:00:00]} 48. Qe4 {[%emt 0:00:00]} Qc1 {[%emt 0:00:00]} 49. Qe7+ {[%emt 0:00:00]} Ng7 {[%emt 0:00:00]} 50. Qe3 {[%emt 0:00:00]} Qc4 {[%emt 0:00:00]} 51. b3 {[%emt 0:00:51]} Qf7 {[%emt 0:00:00]} 52. Rd2 {[%emt 0:01:42]} Qc7+ {[%emt 0:02:00]} 53. Qg3 {[%emt 0:00:06]} Qe7 {[%emt 0:03:17]} 54. Qh3+ {[%emt 0:00:21]} Kg8 {[%emt 0:00:09]} 55. Qg3 {[%emt 0:00:39]} Kh7 {[%emt 0:00:46]} 56. Rd3 {[%emt 0:01:32]} Nf5 {[%emt 0:01:16]} 57. Qf4 {[%emt 0:00:22]} Kg7 {[%emt 0:00:27]} 58. a4 {[%emt 0:01:12]} b4 {[%emt 0:00:39]} 59. Kg2 {[%emt 0:01:48]} Kf6 {[%emt 0:02:17]} 60. Re3 {[%emt 0:01:18]} Qd6 {[%emt 0:01:33]} 61. Qxd6+ {[%emt 0:00:43]} Nxd6 {[%emt 0:00:07]} 62. Re1 {[%emt 0:00:16]} c5 {[%emt 0:00:25]} 63. Rc1 {[%emt 0:01:16]} Ne4 {[%emt 0:00:13]} 64. f3 {[%emt 0:00:34]} Nc3 {[%emt 0:02:08]} 65. Kf2 {[%emt 0:00:38]} Ke5 {[%emt 0:00:23]} 66. Ke3 {[%emt 0:00:20]} c4 {[%emt 0:04:08]} 67. bxc4 {[%emt 0:00:07]} Nxa4 {[%emt 0:00:04]} 68. Ra1 {[%emt 0:00:29]} Nc3 {[%emt 0:00:53]} 69. Rxa5+ {[%emt 0:00:05]} Kd6 {[%emt 0:00:16]} 70. Kd3 {[%emt 0:00:16]} Ke6 {[%emt 0:00:38]} 71. Ra6+ {[%emt 0:01:42] Kd5 Ke4+} 1-0

[Event "47th GRE-chT 2019"]
[Site "Patra"]
[Date "2019.07.04"]
[Round "4.19"]
[White "Gioutsos, Vasileios"]
[Black "Peikos, Rafail"]
[Result "1-0"]
[ECO "B01"]
[WhiteElo "1426"]
[BlackElo "1309"]
[Annotator "NA"]
[PlyCount "123"]
[EventDate "2019.07.02"]
[EventCountry "GRE"]
[SourceTitle "playchess.com"]
[Source "ChessBase"]
[SourceQuality "1"]
[TimeControl "5400+30"]

1. e4 {[%emt 0:00:00]} d5 {[%emt 0:00:00]} 2. exd5 {[%emt 0:00:00]} Qxd5 {[%emt 0:00:00]} 3. Nc3 {[%emt 0:00:00]} Qd6 {[%emt 0:00:00]} 4. d4 {[%emt 0:00:00]} Nf6 {[%emt 0:00:00]} 5. Nf3 {[%emt 0:00:16]} a6 {[%emt 0:00:25]} 6. g3 {[%emt 0:00:38]} Nc6 {[%emt 0:00:28]} 7. Bg2 {[%emt 0:01:19]} Bg4 {[%emt 0:00:48]} 8. Bf4 {[%emt 0:03:37]} Qb4 {[%emt 0:03:16]} 9. O-O {[%emt 0:10:24]} O-O-O {[%emt 0:05:27]} 10. d5 {[%emt 0:16:31]} e6 {[%emt 0:06:47]} 11. a3 {[%emt 0:25:50]} Qc5 {[%emt 0:09:53]} 12. Be3 {[%emt 0:05:42]} Qe7 {[%emt 0:04:38]} 13. h3 {[%emt 0:03:16]} Nxd5 {[%emt 0:07:06]} 14. Nxd5 {[%emt 0:02:37]} Rxd5 {[%emt 0:00:29]} 15. Qe2 {[%emt 0:00:28]} Bh5 {[%emt 0:06:22]} 16. g4 {[%emt 0:02:34]} Bg6 {[%emt 0:00:30]} 17. Nh2 {[%emt 0:02:58]} Nd4 {[%emt 0:06:51]} 18. Bxd4 {[%emt 0:05:40]} Rxd4 {[%emt 0:00:09]} 19. Qe3 {[%emt 0:02:10]} Qc5 {[%emt 0:04:13]} 20. b4 {[%emt 0:03:11]} Qb6 {[%emt 0:03:10]} 21. Nf3 {[%emt 0:01:14]} Rc4 {[%emt 0:02:22]} 22. Qxb6 {[%emt 0:02:26]} cxb6 {[%emt 0:00:13]} 23. Ne5 {[%emt 0:00:19]} Rxc2 {[%emt 0:00:51]} 24. Rac1 {[%emt 0:00:36]} Rc7 {[%emt 0:01:44]} 25. Rxc7+ {[%emt 0:01:05]} Kxc7 {[%emt 0:00:08]} 26. Rc1+ {[%emt 0:00:08]} Kd6 {[%emt 0:01:04]} 27. Nxg6 {[%emt 0:01:35]} hxg6 {[%emt 0:00:40]} 28. Rc8 {[%emt 0:00:40]} a5 {[%emt 0:00:44]} 29. Bxb7 {[%emt 0:02:03]} axb4 {[%emt 0:00:18]} 30. axb4 {[%emt 0:00:03]} Kd7 {[%emt 0:00:24]} 31. g5 {[%emt 0:00:53]} f6 {[%emt 0:00:53]} 32. h4 {[%emt 0:00:43]} Ke7 {[%emt 0:01:14]} 33. Rc4 {[%emt 0:03:06]} fxg5 {[%emt 0:00:34]} 34. hxg5 {[%emt 0:00:33]} Rh5 {[%emt 0:00:39]} 35. f4 {[%emt 0:01:01]} Kd7 {[%emt 0:00:55]} 36. Kg2 {[%emt 0:01:11]} e5 {[%emt 0:00:42]} 37. Bc8+ {[%emt 0:01:47]} Kd8 {[%emt 0:01:40]} 38. Bg4 {[%emt 0:00:19]} Rh4 {[%emt 0:00:16]} 39. fxe5 Ke7 {[%emt 0:01:09]} 40. b5 {[%emt 0:00:00]} Kd8 {[%emt 0:00:00]} 41. Rc8+ {[%emt 0:00:00]} Ke7 {[%emt 0:00:00]} 42. Kg3 {[%emt 0:00:00]} Rh1 {[%emt 0:00:00]} 43. Bf3 {[%emt 0:00:00]} Re1 {[%emt 0:00:00]} 44. Bc6 {[%emt 0:00:00]} Kf7 {[%emt 0:00:00]} 45. e6+ {[%emt 0:00:00]} Ke7 {[%emt 0:00:00]} 46. Re8+ {[%emt 0:00:00]} Kd6 47. Rxf8 {[%emt 0:00:00]} Rg1+ {[%emt 0:00:00]} 48. Kf2 {[%emt 0:00:00]} Rxg5 {[%emt 0:00:00]} 49. Bd7 {[%emt 0:00:00]} Re5 {[%emt 0:00:00]} 50. Rf7 {[%emt 0:00:00]} g5 {[%emt 0:00:00]} 51. Rxg7 {[%emt 0:00:00]} Rf5+ {[%emt 0:00:00]} 52. Kg3 {[%emt 0:00:00]} Kc7 {[%emt 0:00:00]} 53. Kg4 {[%emt 0:00:00]} Re5 {[%emt 0:00:00]} 54. Rxg5 {[%emt 0:00:00]} Re4+ {[%emt 0:00:00]} 55. Kf5 {[%emt 0:00:00]} Rd4 {[%emt 0:00:00]} 56. Kf6 {[%emt 0:00:00]} Kd6 {[%emt 0:00:00]} 57. Kf7 {[%emt 0:00:00]} Rf4+ {[%emt 0:00:00]} 58. Ke8 {[%emt 0:00:00]} Rh4 {[%emt 0:00:00]} 59. Rg8 {[%emt 0:00:00]} Rh7 {[%emt 0:00:00]} 60. Rg6 {[%emt 0:00:00]} Kc7 {[%emt 0:00:00]} 61. Bc6 {[%emt 0:00:00]} Kc8 {[%emt 0:00:00]} 62. e7 {[%emt 0:00:00]} 1-0

[Event "47th GRE-chT 2019"]
[Site "Patra"]
[Date "2019.07.04"]
[Round "4.20"]
[White "Tzermiadianos, Andreas"]
[Black "Argiroudis, Stamatis"]
[Result "1/2-1/2"]
[ECO "B18"]
[WhiteElo "2438"]
[BlackElo "2284"]
[Annotator "NA"]
[PlyCount "78"]
[EventDate "2019.07.02"]
[EventCountry "GRE"]
[SourceTitle "playchess.com"]
[Source "ChessBase"]
[SourceQuality "1"]
[TimeControl "5400+30"]

1. e4 {[%emt 0:00:00]} c6 {[%emt 0:00:00]} 2. d4 {[%emt 0:00:00]} d5 {[%emt 0:00:00]} 3. Nc3 {[%emt 0:00:00]} dxe4 {[%emt 0:00:00]} 4. Nxe4 {[%emt 0:00:08]} Bf5 {[%emt 0:00:22]} 5. Nc5 {[%emt 0:01:10]} Nd7 {[%emt 0:03:38]} 6. Nxb7 {[%emt 0:00:21]} Qb6 {[%emt 0:00:13]} 7. Nc5 {[%emt 0:00:10]} Nxc5 {[%emt 0:02:23]} 8. dxc5 {[%emt 0:00:06]} Qxc5 {[%emt 0:05:38]} 9. Bd3 {[%emt 0:00:11]} Bxd3 {[%emt 0:04:58]} 10. cxd3 {[%emt 0:01:55]} e6 {[%emt 0:04:47]} 11. Nf3 {[%emt 0:00:26]} Qa5+ {[%emt 0:08:17]} 12. Bd2 {[%emt 0:01:42]} Bb4 {[%emt 0:01:32]} 13. Bxb4 {[%emt 0:14:40]} Qxb4+ {[%emt 0:00:06]} 14. Qd2 {[%emt 0:00:04]} Rb8 {[%emt 0:11:17]} 15. Qxb4 {[%emt 0:00:12]} Rxb4 {[%emt 0:00:00]} 16. b3 {[%emt 0:00:00]} Ne7 {[%emt 0:01:40]} 17. Kd2 {[%emt 0:00:00]} f6 {[%emt 0:02:17]} 18. Rhc1 {[%emt 0:00:47]} Kd7 {[%emt 0:03:40]} 19. Rc5 {[%emt 0:01:19]} Rb5 {[%emt 0:03:28]} 20. Rc4 {[%emt 0:00:47]} Ra5 {[%emt 0:04:10]} 21. a4 {[%emt 0:02:16]} Rd5 {[%emt 0:06:17]} 22. b4 {[%emt 0:01:11]} Rb8 {[%emt 0:00:05]} 23. Nd4 {[%emt 0:04:54]} a5 {[%emt 0:17:01]} 24. b5 {[%emt 0:14:06]} cxb5 {[%emt 0:00:04]} 25. Nxb5 {[%emt 0:00:10]} Rc8 {[%emt 0:08:43]} 26. Rxc8 {[%emt 0:04:54]} Nxc8 {[%emt 0:00:02]} 27. Rc1 {[%emt 0:02:37]} Nb6 {[%emt 0:00:41]} 28. Rc7+ {[%emt 0:12:27]} Kd8 {[%emt 0:00:07]} 29. Rxg7 {[%emt 0:04:10]} Nxa4 {[%emt 0:00:07]} 30. Nc7 {[%emt 0:04:01]} Rd6 {[%emt 0:01:17]} 31. Rxh7 {[%emt 0:03:20]} Nc5 {[%emt 0:01:29]} 32. Nb5 {[%emt 0:10:23]} Rxd3+ {[%emt 0:00:53]} 33. Kc2 {[%emt 0:00:16]} Rd5 {[%emt 0:02:50]} 34. Nc3 {[%emt 0:00:34]} Rd7 {[%emt 0:02:52]} 35. Rh8+ {[%emt 0:00:09]} Ke7 {[%emt 0:02:39]} 36. Ra8 {[%emt 0:01:55]} Rc7 {[%emt 0:00:45]} 37. Nb5 {[%emt 0:03:31]} Rc6 {[%emt 0:01:02]} 38. Ra7+ {[%emt 0:01:08]} Kf8 {[%emt 0:00:59]} 39. Nd4 {[%emt 0:00:00]} Rc8 1/2-1/2

[Event "47th GRE-chT 2019"]
[Site "Patra"]
[Date "2019.07.04"]
[Round "4.20"]
[White "Souchleris, Nikolaos"]
[Black "Merkos, Thomas"]
[Result "0-1"]
[ECO "E14"]
[WhiteElo "1204"]
[BlackElo "1665"]
[Annotator "NA"]
[PlyCount "76"]
[EventDate "2019.07.02"]
[EventCountry "GRE"]
[SourceTitle "playchess.com"]
[Source "ChessBase"]
[SourceQuality "1"]
[TimeControl "5400+30"]

1. d4 {[%emt 0:00:00]} Nf6 {[%emt 0:00:00]} 2. Nf3 {[%emt 0:00:00]} e6 {[%emt 0:00:00]} 3. e3 {[%emt 0:00:06]} b6 {[%emt 0:00:00]} 4. Bd3 {[%emt 0:00:07]} Bb7 {[%emt 0:00:07]} 5. b3 {[%emt 0:00:06]} Be7 {[%emt 0:00:08]} 6. Bb2 {[%emt 0:00:13]} O-O {[%emt 0:00:13]} 7. O-O {[%emt 0:00:33]} d5 {[%emt 0:00:13]} 8. c4 {[%emt 0:00:06]} c5 {[%emt 0:00:32]} 9. Nbd2 {[%emt 0:00:21]} Nc6 {[%emt 0:01:19]} 10. a3 {[%emt 0:00:24]} h6 {[%emt 0:01:38]} 11. Qe2 {[%emt 0:02:50]} Rc8 {[%emt 0:01:49]} 12. Rac1 {[%emt 0:02:47]} Qd7 {[%emt 0:02:26]} 13. Rfd1 {[%emt 0:03:55]} Rfd8 {[%emt 0:03:41]} 14. Bb1 {[%emt 0:12:55]} cxd4 {[%emt 0:02:49]} 15. exd4 {[%emt 0:08:00]} Ba6 {[%emt 0:19:03]} 16. Rc3 {[%emt 0:18:20]} dxc4 {[%emt 0:08:23]} 17. Nxc4 {[%emt 0:01:21]} Nd5 {[%emt 0:09:36]} 18. Rcc1 {[%emt 0:03:16]} Bd6 {[%emt 0:09:46]} 19. Qc2 {[%emt 0:03:28]} g6 {[%emt 0:08:45]} 20. Nxd6 {[%emt 0:00:27]} Qxd6 {[%emt 0:02:24]} 21. Qd2 {[%emt 0:03:51]} Nf4 {[%emt 0:05:15]} 22. Kh1 {[%emt 0:16:58]} Na5 {[%emt 0:04:24]} 23. Rxc8 {[%emt 0:00:48]} Rxc8 {[%emt 0:01:22]} 24. Qe3 {[%emt 0:04:26]} Bb7 {[%emt 0:05:34]} 25. Rc1 {[%emt 0:01:09]} Rxc1+ {[%emt 0:00:07]} 26. Bxc1 {[%emt 0:02:01]} g5 {[%emt 0:04:26]} 27. b4 {[%emt 0:02:06]} Nc4 {[%emt 0:01:23]} 28. Qc3 {[%emt 0:01:48]} b5 {[%emt 0:01:16]} 29. Bxf4 {[%emt 0:00:18]} Qxf4 {[%emt 0:01:56]} 30. Qd3 {[%emt 0:04:29]} f5 {[%emt 0:03:01]} 31. Ba2 {[%emt 0:03:33]} g4 {[%emt 0:01:56]} 32. Bxc4 {[%emt 0:01:44]} gxf3 {[%emt 0:00:21]} 33. Bxe6+ {[%emt 0:02:48]} Kh8 {[%emt 0:00:57]} 34. Qe3 {[%emt 0:00:36]} Qxe3 {[%emt 0:00:08]} 35. fxe3 {[%emt 0:00:05]} f2 {[%emt 0:00:39]} 36. Bc4 {[%emt 0:00:05]} bxc4 {[%emt 0:00:06]} 37. h3 {[%emt 0:00:06]} f1=Q+ {[%emt 0:00:09]} 38. Kh2 {[%emt 0:00:02]} Qxg2# {[%emt 0:00:31]} 0-1

[Event "47th GRE-chT 2019"]
[Site "Patra"]
[Date "2019.07.04"]
[Round "4.22"]
[White "Martinovic, Sasa"]
[Black "Pancevski, Filip"]
[Result "0-1"]
[ECO "B08"]
[WhiteElo "2560"]
[BlackElo "2514"]
[Annotator "ChessBase"]
[PlyCount "82"]
[EventDate "2019.07.02"]
[EventCountry "GRE"]
[SourceTitle "playchess.com"]
[Source "ChessBase"]
[SourceQuality "1"]
[TimeControl "5400+30"]

1. d4 {[%emt 0:00:00]} d6 {[%emt 0:00:00]} 2. Nf3 {[%emt 0:00:08]} Nf6 {[%emt 0:00:00]} 3. Nc3 {[%emt 0:00:43]} g6 {[%emt 0:00:00]} 4. e4 {[%emt 0:00:08]} Bg7 {[%emt 0:00:00]} 5. Be3 {[%emt 0:01:06]} O-O {[%emt 0:00:00]} 6. Qd2 {[%emt 0:01:30]} c6 {[%emt 0:00:00]} 7. Bh6 {[%emt 0:04:15]} Qa5 {[%emt 0:03:42]} 8. h4 {[%emt 0:22:56]} Bxh6 {[%emt 0:00:04]} 9. Qxh6 {[%emt 0:00:03]} Ng4 {[%emt 0:10:40]} 10. Qd2 {[%emt 0:01:42]} h5 {[%emt 0:05:05]} 11. Bc4 {[%emt 0:05:54]} Kg7 {[%emt 0:12:47]} 12. Ng5 {[%emt 0:14:23]} Nd7 {[%emt 0:04:44]} 13. f3 {[%emt 0:01:09]} Ngf6 {[%emt 0:17:21]} 14. g4 {[%emt 0:16:26]} e5 {[%emt 0:05:27]} 15. O-O-O {[%emt 0:07:16]} Qb4 {[%emt 0:14:55]} 16. dxe5 {[%emt 0:01:49]} dxe5 {[%emt 0:07:01]} 17. Bxf7 {[%emt 0:00:04]} Rxf7 {[%emt 0:00:05]} 18. Nxf7 {[%emt 0:00:03]} Kxf7 {[%emt 0:04:07]} 19. g5 {[%emt 0:01:38]} Ne8 {[%emt 0:00:03]} 20. f4 {[%emt 0:05:04]} exf4 {[%emt 0:00:01]} 21. Rhf1 {[%emt 0:01:23]} Kg8 {[%emt 0:02:51]} 22. Qxf4 {[%emt 0:04:22]} Qe7 {[%emt 0:00:04]} 23. e5 {[%emt 0:00:48]} Nc5 {[%emt 0:06:58]} 24. b4 {[%emt 0:00:42]} Ne6 {[%emt 0:00:01]} 25. Qe4 {[%emt 0:01:13]} Kh7 {[%emt 0:04:40]} 26. Rf2 {[%emt 0:02:56]} N6g7 {[%emt 0:00:23]} 27. Qd4 {[%emt 0:02:01]} Bg4 {[%emt 0:00:20]} 28. Rdd2 {[%emt 0:01:41]} Bf5 {[%emt 0:01:05]} 29. Ne4 {[%emt 0:00:48]} Bxe4 {[%emt 0:00:01]} 30. Qxe4 {[%emt 0:00:28]} a5 {[%emt 0:01:19]} 31. Rf6 {[%emt 0:00:54]} Nf5 {[%emt 0:00:46]} 32. Rxf5 {[%emt 0:00:02]} gxf5 {[%emt 0:00:03]} 33. Qxf5+ {[%emt 0:00:26]} Kg8 {[%emt 0:01:23]} 34. g6 {[%emt 0:00:08]} Ng7 {[%emt 0:00:20]} 35. Qf6 {[%emt 0:01:51]} Re8 {[%emt 0:00:25]} 36. Rf2 {[%emt 0:00:55]} Qxb4 {[%emt 0:00:43]} 37. Qf7+ {[%emt 0:00:01]} Kh8 {[%emt 0:00:33]} 38. e6 {[%emt 0:00:11]} Qe1+ {[%emt 0:00:01]} 39. Kb2 {[%emt 0:00:25]} Qe5+ {[%emt 0:00:00]} 40. c3 {[%emt 0:00:00]} Qxe6 {[%emt 0:00:00]} 41. Rf6 {[%emt 0:00:00]} Qd5 {[%emt 0:00:00]} 0-1

[Event "47th GRE-chT 2019"]
[Site "Patra"]
[Date "2019.07.04"]
[Round "4.23"]
[White "Tsaknakis, Zisis"]
[Black "Spyropoulos, Nikolaos"]
[Result "1/2-1/2"]
[ECO "A07"]
[WhiteElo "2263"]
[BlackElo "2404"]
[Annotator "NA"]
[PlyCount "80"]
[EventDate "2019.07.02"]
[EventCountry "GRE"]
[SourceTitle "playchess.com"]
[Source "ChessBase"]
[SourceQuality "1"]
[TimeControl "5400+30"]

1. Nf3 {[%emt 0:00:00]} d5 {[%emt 0:01:22]} 2. g3 {[%emt 0:00:00]} Nf6 {[%emt 0:03:17]} 3. Bg2 {[%emt 0:00:00]} Bg4 {[%emt 0:00:30]} 4. O-O {[%emt 0:01:00]} Nbd7 {[%emt 0:02:18]} 5. c4 {[%emt 0:00:33]} e6 {[%emt 0:08:49]} 6. Qb3 {[%emt 0:08:01]} Nc5 {[%emt 0:05:02]} 7. Qe3 {[%emt 0:00:19]} c6 {[%emt 0:10:41]} 8. d4 {[%emt 0:05:11]} Ncd7 {[%emt 0:01:11]} 9. cxd5 {[%emt 0:10:46]} cxd5 {[%emt 0:00:24]} 10. Ne5 {[%emt 0:07:03]} Bf5 {[%emt 0:10:41]} 11. Nc3 {[%emt 0:03:01]} Be7 {[%emt 0:04:35]} 12. Qf4 {[%emt 0:08:41]} O-O {[%emt 0:08:38]} 13. g4 {[%emt 0:00:02]} Bg6 {[%emt 0:01:14]} 14. h4 {[%emt 0:02:38]} Nxe5 {[%emt 0:05:47]} 15. dxe5 {[%emt 0:02:32]} Ne4 {[%emt 0:00:06]} 16. Nxe4 {[%emt 0:13:44]} Bxe4 {[%emt 0:00:05]} 17. Bxe4 {[%emt 0:00:21]} dxe4 {[%emt 0:00:04]} 18. Qxe4 {[%emt 0:00:12]} Bxh4 {[%emt 0:01:22]} 19. Be3 {[%emt 0:02:36]} f5 {[%emt 0:03:08]} 20. exf6 {[%emt 0:05:48]} Bxf6 {[%emt 0:05:41]} 21. Qxe6+ {[%emt 0:03:26]} Kh8 {[%emt 0:00:04]} 22. Rad1 {[%emt 0:00:06]} Qa5 {[%emt 0:01:33]} 23. g5 {[%emt 0:00:39]} Bxb2 {[%emt 0:03:03]} 24. Rb1 {[%emt 0:12:12]} Rae8 {[%emt 0:02:01]} 25. Qh3 {[%emt 0:00:11]} Bc3 {[%emt 0:08:18]} 26. Rxb7 {[%emt 0:05:40]} Qa6 {[%emt 0:03:04]} 27. Rc7 {[%emt 0:00:49]} Be5 {[%emt 0:01:32]} 28. Rxa7 {[%emt 0:00:47]} Qxe2 {[%emt 0:00:52]} 29. g6 {[%emt 0:02:57]} h5 {[%emt 0:00:16]} 30. Rf7 {[%emt 0:00:06]} Rxf7 {[%emt 0:02:15]} 31. gxf7 {[%emt 0:00:01]} Rf8 {[%emt 0:00:07]} 32. Qe6 {[%emt 0:00:52]} Bf4 {[%emt 0:04:44]} 33. Rc1 {[%emt 0:04:29]} Bxe3 {[%emt 0:01:52]} 34. fxe3 {[%emt 0:01:16]} Qf3 {[%emt 0:00:23]} 35. Rc8 {[%emt 0:00:37]} Qg3+ {[%emt 0:01:31]} 36. Kf1 {[%emt 0:00:06]} Qf3+ {[%emt 0:00:04]} 37. Kg1 {[%emt 0:00:07]} Qg3+ {[%emt 0:00:12]} 38. Kf1 {[%emt 0:00:01]} Qf3+ {[%emt 0:00:08]} 39. Ke1 {[%emt 0:01:14]} Qg3+ {[%emt 0:00:23]} 40. Ke2 {[%emt 0:00:00]} Qg2+ {[%emt 0:00:00]} 1/2-1/2

[Event "47th GRE-chT 2019"]
[Site "Patra"]
[Date "2019.07.04"]
[Round "4.24"]
[White "Balokas, Dimitrios"]
[Black "Papadopoulos, Panayotis"]
[Result "0-1"]
[ECO "A54"]
[WhiteElo "2206"]
[BlackElo "2165"]
[Annotator "NA"]
[PlyCount "70"]
[EventDate "2019.07.02"]
[EventCountry "GRE"]
[SourceTitle "playchess.com"]
[Source "ChessBase"]
[SourceQuality "1"]
[TimeControl "5400+30"]

1. d4 {[%emt 0:00:00]} Nf6 {[%emt 0:00:00]} 2. c4 {[%emt 0:00:00]} d6 {[%emt 0:00:00]} 3. Nc3 {[%emt 0:00:00]} Nbd7 {[%emt 0:00:04]} 4. Nf3 {[%emt 0:00:00]} e5 {[%emt 0:00:06]} 5. Bg5 {[%emt 0:00:11]} Be7 {[%emt 0:00:08]} 6. e3 {[%emt 0:00:20]} c6 {[%emt 0:00:07]} 7. Qc2 {[%emt 0:03:24]} h6 {[%emt 0:00:14]} 8. Bh4 {[%emt 0:04:16]} exd4 {[%emt 0:01:12]} 9. Nxd4 {[%emt 0:01:43]} Ne5 {[%emt 0:10:44]} 10. Be2 {[%emt 0:00:52]} O-O {[%emt 0:00:12]} 11. O-O {[%emt 0:00:47]} Re8 {[%emt 0:04:37]} 12. Rfd1 {[%emt 0:02:05]} Qc7 {[%emt 0:02:12]} 13. Nf5 {[%emt 0:01:38]} Bxf5 {[%emt 0:00:02]} 14. Qxf5 {[%emt 0:08:01]} Qd7 {[%emt 0:10:14]} 15. Qxd7 {[%emt 0:00:07]} Nexd7 {[%emt 0:02:05]} 16. Bg3 {[%emt 0:03:44]} Ne5 {[%emt 0:01:35]} 17. c5 {[%emt 0:00:52]} Rad8 {[%emt 0:14:28]} 18. b4 {[%emt 0:01:47]} Bf8 {[%emt 0:00:20]} 19. cxd6 {[%emt 0:00:58]} Rxd6 {[%emt 0:07:58]} 20. a3 {[%emt 0:08:22]} Rxd1+ {[%emt 0:00:50]} 21. Rxd1 {[%emt 0:00:58]} Ned7 {[%emt 0:03:56]} 22. Bd6 {[%emt 0:01:36]} Nb6 {[%emt 0:00:46]} 23. Bxf8 {[%emt 0:00:07]} Kxf8 {[%emt 0:00:11]} 24. b5 {[%emt 0:02:29]} c5 {[%emt 0:07:04]} 25. Bf3 {[%emt 0:00:05]} Rb8 {[%emt 0:00:29]} 26. a4 {[%emt 0:03:06]} Ke7 {[%emt 0:02:07]} 27. g3 {[%emt 0:04:33]} Nc4 {[%emt 0:06:42]} 28. e4 {[%emt 0:04:03]} Rd8 {[%emt 0:00:55]} 29. Rxd8 {[%emt 0:00:48]} Kxd8 {[%emt 0:00:40]} 30. e5 {[%emt 0:00:15]} Nxe5 {[%emt 0:00:06]} 31. Bxb7 {[%emt 0:00:42]} Kc7 {[%emt 0:03:49]} 32. Bd5 {[%emt 0:05:23]} Kb6 {[%emt 0:00:42]} 33. f4 {[%emt 0:02:54]} Ned7 {[%emt 0:01:39]} 34. Kf1 {[%emt 0:07:31]} Nxd5 {[%emt 0:00:11]} 35. Nxd5+ {[%emt 0:00:05]} Ka5 {[%emt 0:04:29]} 0-1